bitfinex-derivatives/quotes_BTCF0:USTF0_20250406
["timestamp","ask_amount","ask_price","bid_price","bid_amount"]
[1743944989013,0.0643812,82813.0,82812.0,0.0853293]
[1743944989220,0.3989495,82813.0,82812.0,0.0853293]
[1743944990118,0.3897895,82813.0,82812.0,0.0853293]
[1743944990314,0.4197895,82813.0,82812.0,0.0853293]
[1743944990619,0.3897895,82813.0,82812.0,0.0853293]
[1743944990918,0.4097895,82813.0,82812.0,0.0853293]
[1743944991108,0.1497895,82813.0,82812.0,0.0853293]
[1743944991509,0.3997895,82813.0,82812.0,0.0853293]
[1743944992619,0.1497895,82813.0,82812.0,0.0853293]
[1743944992821,0.3897895,82813.0,82812.0,0.0853293]
[1743944993013,0.1497895,82813.0,82812.0,0.0853293]
[1743944994218,0.1497895,82813.0,82812.0,0.1172293]
[1743944995519,0.2597895,82813.0,82812.0,0.0853293]
[1743944995719,0.1497895,82813.0,82812.0,0.0853293]
[1743944996020,0.4097895,82813.0,82812.0,0.0853293]
[1743944996223,0.1497895,82813.0,82812.0,0.0853293]
[1743944996413,0.1497895,82813.0,82812.0,0.1173293]
[1743944996614,0.0652212,82813.0,82812.0,0.1173293]
[1743944996815,0.0010212,82813.0,82812.0,0.1490293]
[1743944997117,0.0001812,82813.0,82812.0,0.1490293]
[1743944997315,0.0001812,82813.0,82812.0,1.6490293]
[1743945000228,0.0001812,82813.0,82812.0,2.0098293]
[1743945006730,8e-05,82814.0,82813.0,0.0845683]
[1743945006926,0.10783951,82816.0,82815.0,0.0845663]
[1743945007125,0.10783951,82816.0,82815.0,0.19606593]
[1743945007439,0.10783951,82816.0,82815.0,1.75716593]
[1743945007627,0.10783951,82816.0,82815.0,1.87791918]
[1743945010134,8e-05,82819.0,82818.0,0.0845632]
[1743945010339,8e-05,82819.0,82818.0,0.0852032]
[1743945010642,8e-05,82819.0,82818.0,0.1472032]
[1743945010826,8e-05,82819.0,82818.0,0.26795354]
[1743945012039,8e-05,82825.0,82824.0,0.2853571]
[1743945012225,8e-05,82825.0,82824.0,0.70483512]
[1743945012428,0.14445108,82836.0,82835.0,0.2853459]
[1743945012630,0.14521108,82836.0,82835.0,1.9988259]
[1743945012825,0.14445108,82836.0,82835.0,1.9988259]
[1743945013325,0.14445108,82836.0,82835.0,2.0617259]
[1743945013724,0.0615,82839.0,82838.0,0.0845428]
[1743945013928,0.0715,82839.0,82838.0,0.0851828]
[1743945015838,0.0715,82839.0,82838.0,0.1466828]
[1743945018238,0.0411,82839.0,82838.0,0.1466828]
[1743945019139,0.0411,82839.0,82838.0,0.0851828]
[1743945019346,0.072,82839.0,82838.0,0.0851828]
[1743945020136,0.1565418,82839.0,82838.0,0.0851828]
[1743945020336,0.072,82839.0,82838.0,0.0851828]
[1743945020635,0.01,82839.0,82838.0,0.0851828]
[1743945020830,0.0404,82839.0,82838.0,0.0851828]
[1743945021138,0.0726,82839.0,82838.0,0.0851828]
[1743945022843,0.0404,82839.0,82838.0,0.0851828]
[1743945023345,0.01,82839.0,82838.0,0.1181828]
[1743945023547,0.01,82839.0,82838.0,0.26919961]
[1743945023737,0.0004,82840.0,82839.0,0.0845418]
[1743945023938,0.0004,82840.0,82839.0,1.5845418]
[1743945024244,0.0004,82840.0,82839.0,1.6478418]
[1743945024551,0.0004,82840.0,82839.0,1.76923715]
[1743945031952,0.0004,82840.0,82839.0,1.73893715]
[1743945032255,0.0004,82840.0,82839.0,1.75873715]
[1743945032447,0.0004,82840.0,82839.0,1.6380218]
[1743945034353,0.0004,82840.0,82839.0,1.6689218]
[1743945034556,0.0004,82840.0,82839.0,1.7001218]
[1743945035756,0.0004,82840.0,82839.0,1.6473218]
[1743945035954,0.0004,82840.0,82839.0,1.7001218]
[1743945036154,0.0004,82840.0,82839.0,1.6689218]
[1743945036457,0.0004,82840.0,82839.0,1.6161218]
[1743945036648,0.0004,82840.0,82839.0,2.0604218]
[1743945037457,0.0004,82840.0,82839.0,2.18113715]
[1743945040168,0.0004,82840.0,82839.0,1.6380218]
[1743945040657,0.3149408,82840.0,82839.0,1.50068]
[1743945040848,0.0857008,82840.0,82839.0,1.50068]
[1743945041050,0.0849408,82840.0,82839.0,1.5852218]
[1743945041252,0.1501408,82840.0,82839.0,1.5852218]
[1743945044463,0.0656,82840.0,82839.0,1.5852218]
[1743945044662,0.1501408,82840.0,82839.0,1.5852218]
[1743945045064,0.0656,82840.0,82839.0,1.5852218]
[1743945046550,0.1501408,82840.0,82839.0,1.5852218]
[1743945046755,0.2401408,82840.0,82839.0,1.5852218]
[1743945046962,0.1501408,82840.0,82839.0,1.5852218]
[1743945047164,0.3901408,82840.0,82839.0,1.50068]
[1743945047463,0.0845448,82836.0,82835.0,0.22625039]
[1743945047655,0.3355448,82836.0,82835.0,0.22689039]
[1743945047856,0.5755448,82836.0,82835.0,0.22761039]
[1743945048157,0.5755448,82836.0,82835.0,0.22697039]
[1743945048360,0.7981448,82836.0,82835.0,0.22697039]
[1743945048662,0.084551,82830.0,82829.0,0.0845511]
[1743945048862,0.58575101,82830.0,82829.0,0.0851911]
[1743945049066,0.35575101,82830.0,82829.0,0.37435466]
[1743945049550,0.41835101,82830.0,82829.0,0.37435466]
[1743945050658,0.41835101,82830.0,82829.0,0.38335997]
[1743945054164,0.69835101,82830.0,82829.0,0.29880887]
[1743945054368,0.41835101,82830.0,82829.0,0.00964531]
[1743945054576,0.0422795,82823.0,82819.0,0.0845616]
[1743945054868,0.0422795,82823.0,82812.0,0.00181127]
[1743945054869,0.0845642,82817.0,82816.0,0.0847465]
[1743945055058,0.1745642,82817.0,82816.0,0.00930794]
[1743945055257,0.17576421,82817.0,82816.0,0.00930794]
[1743945055765,0.23616421,82817.0,82816.0,0.00930794]
[1743945057267,0.23616421,82817.0,82816.0,0.09387324]
[1743945057966,0.23616421,82817.0,82816.0,0.00930794]
[1743945059073,0.23616421,82817.0,82816.0,0.09387324]
[1743945059376,0.23616421,82817.0,82816.0,0.00930794]
[1743945060070,0.23616421,82817.0,82816.0,0.09387324]
[1743945060664,0.23616421,82817.0,82816.0,0.00930794]
[1743945062675,0.23616421,82817.0,82816.0,0.09387324]
[1743945067280,0.23616421,82817.0,82816.0,0.00930794]
[1743945067484,0.48616421,82817.0,82816.0,0.00930794]
[1743945067674,0.0845765,82805.0,82804.0,0.0329]
[1743945067873,0.23120001,82805.0,82794.0,0.0315]
[1743945068178,0.0845867,82796.0,82795.0,0.1268754]
[1743945068384,0.0845867,82796.0,82795.0,0.1597754]
[1743945068676,0.0422928,82797.0,82795.0,0.1597754]
[1743945068879,0.0422904,82801.0,82798.0,0.0845836]
[1743945069073,0.00018082,82804.0,82803.0,0.0845785]
[1743945069272,0.11018082,82804.0,82803.0,0.0845785]
[1743945069584,0.19475832,82804.0,82803.0,0.1791785]
[1743945069971,0.11146082,82804.0,82803.0,0.1791785]
[1743945070178,8e-05,82805.0,82804.0,0.0845775]
[1743945070375,0.0422857,82810.0,82809.0,0.0845724]
[1743945070576,0.042284,82814.0,82813.0,0.0845683]
[1743945070780,0.232284,82814.0,82813.0,1.5845683]
[1743945071482,0.19,82814.0,82813.0,1.6805683]
[1743945071680,0.19,82814.0,82813.0,2.0413683]
[1743945072070,0.004,82814.0,82813.0,2.0413683]
[1743945072581,8e-05,82815.0,82814.0,0.0845673]
[1743945072768,8e-05,82815.0,82814.0,0.1495673]
[1743945073071,0.14453108,82830.0,82829.0,0.084552]
[1743945073271,0.20008,82830.0,82829.0,0.084552]
[1743945073486,0.284551,82830.0,82829.0,0.084552]
[1743945073977,0.284551,82830.0,82829.0,0.149552]
[1743945075185,0.285351,82830.0,82829.0,0.150192]
[1743945075783,0.287351,82830.0,82829.0,0.150192]
[1743945084587,0.318651,82830.0,82829.0,0.150192]
[1743945085889,0.348851,82830.0,82829.0,0.117592]
[1743945086085,0.084553,82828.0,82827.0,0.0422765]
[1743945086387,0.334553,82828.0,82827.0,0.0422765]
[1743945086587,0.594553,82828.0,82827.0,0.0422765]
[1743945086780,0.0422785,82824.0,82822.0,0.1268353]
[1743945086977,0.096,82823.0,82822.0,0.1268353]
[1743945087179,0.366,82823.0,82822.0,0.1268353]
[1743945088282,0.4505581,82823.0,82822.0,0.1268353]
[1743945088481,0.4525581,82823.0,82822.0,0.1268353]
[1743945089790,0.368,82823.0,82822.0,0.1268353]
[1743945090003,0.03474,82823.0,82822.0,0.1275153]
[1743945090178,0.18045702,82835.0,82830.0,0.084551]
[1743945090491,0.21065702,82835.0,82834.0,0.0845469]
[1743945090688,0.21145702,82835.0,82834.0,1.5851869]
[1743945090892,0.0004,82840.0,82839.0,0.0845418]
[1743945091082,0.00136,82840.0,82839.0,0.0851818]
[1743945091491,0.00128,82840.0,82839.0,0.1466818]
[1743945091686,0.00128,82840.0,82839.0,0.15594156]
[1743945092195,0.03148,82840.0,82839.0,0.15594156]
[1743945092386,0.06568,82840.0,82839.0,0.15594156]
[1743945093782,0.03348,82840.0,82839.0,0.15594156]
[1743945094896,0.0326,82840.0,82839.0,0.15594156]
[1743945095684,0.0334,82840.0,82839.0,0.15594156]
[1743945096798,0.0326,82840.0,82839.0,0.15594156]
[1743945097694,0.0334,82840.0,82839.0,0.15594156]
[1743945097995,0.0326,82840.0,82839.0,0.15594156]
[1743945099699,0.0326,82840.0,82839.0,0.12574156]
[1743945099700,0.0656,82840.0,82839.0,0.12574156]
[1743945099893,0.0664,82840.0,82839.0,0.12574156]
[1743945100092,0.0656,82840.0,82839.0,0.12574156]
[1743945102485,0.0981,82840.0,82839.0,0.12574156]
[1743945103091,0.0989,82840.0,82839.0,0.12574156]
[1743945103396,0.0664,82840.0,82839.0,0.12574156]
[1743945103588,0.0326,82840.0,82839.0,0.12574156]
[1743945104591,0.0334,82840.0,82839.0,0.12574156]
[1743945104792,0.0326,82840.0,82839.0,0.12574156]
[1743945105090,8e-05,82841.0,82839.0,0.12574156]
[1743945105296,8e-05,82841.0,82840.0,0.1176408]
[1743945105488,0.03,82844.0,82843.0,0.0845377]
[1743945105693,0.0308,82844.0,82843.0,0.4460977]
[1743945105993,0.0308,82844.0,82843.0,0.5432977]
[1743945107601,8e-05,82846.0,82845.0,0.0845357]
[1743945107787,0.00076,82846.0,82845.0,0.0852157]
[1743945107992,0.14440293,82849.0,82848.0,0.0845326]
[1743945108299,0.14512293,82849.0,82848.0,0.0852526]
[1743945108488,0.14512293,82849.0,82848.0,1.5852526]
[1743945108694,0.08555713,82849.0,82848.0,1.5852526]
[1743945108992,0.31555713,82849.0,82848.0,1.5852526]
[1743945109198,0.032,82851.0,82850.0,0.0845306]
[1743945110006,0.1165295,82851.0,82850.0,0.0852106]
[1743945110301,0.302,82851.0,82850.0,0.0852106]
[1743945110494,0.03268,82851.0,82850.0,0.0852106]
[1743945110695,0.032,82851.0,82850.0,0.4460106]
[1743945110898,0.03268,82852.0,82851.0,0.0845295]
[1743945111094,0.03268,82852.0,82851.0,0.1486095]
[1743945111289,0.0326,82852.0,82851.0,0.1486095]
[1743945113406,0.0642,82852.0,82851.0,0.1486095]
[1743945115511,0.3242,82852.0,82851.0,0.1486095]
[1743945115694,0.0642,82852.0,82851.0,0.1486095]
[1743945115900,0.3142,82852.0,82851.0,0.1486095]
[1743945116099,0.0642,82852.0,82851.0,0.1486095]
[1743945117005,0.0642,82852.0,82851.0,0.5094095]
[1743945119596,0.0642,82852.0,82851.0,0.4783095]
[1743945119802,0.3887285,82852.0,82851.0,0.4460095]
[1743945120100,0.3793685,82852.0,82851.0,0.4460095]
[1743945120300,0.3893685,82852.0,82851.0,0.4460095]
[1743945120610,0.4287285,82852.0,82851.0,0.4460095]
[1743945120810,0.1494085,82852.0,82851.0,0.4460095]
[1743945121008,0.3787285,82852.0,82851.0,0.4460095]
[1743945121208,0.4287285,82852.0,82851.0,0.4460095]
[1743945121400,0.4094085,82852.0,82851.0,0.4460095]
[1743945122406,0.4194085,82852.0,82851.0,0.36148]
[1743945122606,0.6794085,82852.0,82851.0,0.00068]
[1743945122914,0.0422688,82844.0,82840.0,0.00018108]
[1743945123106,0.0845387,82842.0,82841.0,1.5]
[1743945123305,0.3352587,82842.0,82841.0,1.50076]
[1743945123506,0.3970587,82842.0,82841.0,1.5852997]
[1743945124601,0.6270587,82842.0,82841.0,1.5852997]
[1743945124803,0.6370587,82842.0,82841.0,1.5852997]
[1743945125011,0.3970587,82842.0,82841.0,1.5852997]
[1743945125214,0.6470587,82842.0,82841.0,1.5852997]
[1743945125803,0.3970587,82842.0,82841.0,1.5852997]
[1743945129920,0.3970587,82842.0,82841.0,1.6168997]
[1743945132418,0.50531823,82842.0,82841.0,1.6168997]
[1743945132619,0.42077953,82842.0,82841.0,1.6168997]
[1743945132820,0.17077953,82842.0,82841.0,1.6168997]
[1743945133123,0.17005953,82842.0,82841.0,1.6495997]
[1743945135923,0.0618,82842.0,82841.0,1.6495997]
[1743945137325,0.0618,82842.0,82841.0,0.1815997]
[1743945137523,0.00068,82842.0,82841.0,0.1815997]
[1743945137823,0.10825953,82845.0,82844.0,0.0845367]
[1743945138029,0.10825953,82845.0,82844.0,0.4460167]
[1743945138619,0.10825953,82845.0,82844.0,1.9460167]
[1743945139830,0.10825953,82845.0,82844.0,1.9988167]
[1743945140720,8e-05,82849.0,82848.0,0.0845326]
[1743945141030,8e-05,82849.0,82848.0,0.0852126]
[1743945146429,0.26076,82849.0,82848.0,0.0852126]
[1743945146629,0.00076,82849.0,82848.0,0.0852126]
[1743945147435,0.26076,82849.0,82848.0,0.0852126]
[1743945147634,0.00076,82849.0,82848.0,0.0852126]
[1743945148037,0.00076,82849.0,82848.0,0.1180126]
[1743945148835,0.28076,82849.0,82848.0,0.1180126]
[1743945149036,0.00076,82849.0,82848.0,0.1180126]
[1743945149238,8e-05,82849.0,82848.0,0.1180126]
[1743945150041,0.00076,82849.0,82848.0,0.1180126]
[1743945150341,0.00076,82849.0,82848.0,1.6180126]
[1743945150549,8e-05,82849.0,82848.0,1.6180126]
[1743945151448,0.10825953,82851.0,82850.0,0.0845306]
[1743945151646,0.10825953,82851.0,82850.0,0.0852106]
[1743945152350,0.10825953,82851.0,82850.0,1.5852106]
[1743945153636,0.03108,82854.0,82851.0,0.0845295]
[1743945153637,0.10825953,82852.0,82851.0,0.0845295]
[1743945153842,0.10825953,82852.0,82851.0,0.5091895]
[1743945157654,0.03108,82854.0,82853.0,0.0845275]
[1743945157854,0.03108,82854.0,82853.0,0.0852075]
[1743945161254,0.27108,82854.0,82853.0,0.0852075]
[1743945161449,0.3762865,82854.0,82853.0,0.00068]
[1743945162463,0.3762865,82854.0,82853.0,0.0852075]
[1743945163051,0.6262865,82854.0,82853.0,0.00068]
[1743945163252,0.6462865,82854.0,82853.0,0.0852075]
[1743945163455,0.6362865,82854.0,82853.0,0.0852075]
[1743945163654,0.6362865,82854.0,82845.0,0.28916356]
[1743945163655,0.0845346,82846.0,82845.0,0.28916356]
[1743945163862,0.3445346,82846.0,82845.0,0.37433926]
[1743945164061,0.3454146,82846.0,82845.0,0.37433926]
[1743945164560,0.4079146,82846.0,82845.0,0.37433926]
[1743945164756,0.6679146,82846.0,82845.0,1.87433926]
[1743945164960,0.6579146,82846.0,82845.0,1.87433926]
[1743945165155,0.4079146,82846.0,82845.0,1.87433926]
[1743945166062,0.4079146,82846.0,82845.0,1.5851757]
[1743945166467,0.6379146,82846.0,82845.0,1.5851757]
[1743945166666,0.32338,82846.0,82845.0,1.5851757]
[1743945167162,0.3225,82846.0,82845.0,1.6156757]
[1743945167459,0.3225,82846.0,82845.0,1.6459757]
[1743945167761,0.3225,82846.0,82845.0,2.0067757]
[1743945167951,0.3225,82846.0,82845.0,1.6459757]
[1743945169569,0.4070346,82846.0,82845.0,1.6459757]
[1743945169763,0.2809,82846.0,82845.0,1.5851757]
[1743945169964,0.2809,82846.0,82845.0,1.6181757]
[1743945170159,0.3886346,82846.0,82845.0,1.6181757]
[1743945170367,0.32486,82846.0,82845.0,1.6181757]
[1743945170565,0.34486,82846.0,82845.0,1.6181757]
[1743945170767,0.06486,82846.0,82845.0,1.6181757]
[1743945171067,0.0641,82846.0,82845.0,1.6181757]
[1743945171266,0.0641,82846.0,82845.0,1.6496757]
[1743945172568,8e-05,82847.0,82846.0,0.0845346]
[1743945172767,8e-05,82847.0,82846.0,0.0851746]
[1743945172953,8e-05,82847.0,82846.0,0.1467746]
[1743945173153,0.10836128,82848.0,82847.0,0.0845336]
[1743945173352,0.10836128,82848.0,82847.0,0.0851736]
[1743945173564,0.10836128,82848.0,82847.0,0.1467736]
[1743945173767,0.10836128,82849.0,82848.0,0.0845326]
[1743945173965,0.10836128,82849.0,82848.0,0.1467726]
[1743945175081,0.10836128,82849.0,82848.0,0.26747484]
[1743945175463,0.10916128,82849.0,82848.0,0.26747484]
[1743945175773,0.10916128,82849.0,82848.0,1.76747484]
[1743945175963,0.10836128,82849.0,82848.0,1.76747484]
[1743945177172,0.10836128,82849.0,82848.0,1.96797484]
[1743945178167,8e-05,82850.0,82849.0,0.0845316]
[1743945178373,8e-05,82850.0,82849.0,0.1160716]
[1743945178564,8e-05,82850.0,82849.0,0.1783716]
[1743945178872,8e-05,82850.0,82849.0,0.29907238]
[1743945179173,8e-05,82850.0,82849.0,1.79907238]
[1743945182668,8e-05,82850.0,82849.0,1.8570947]
[1743945183173,8e-05,82850.0,82849.0,1.79907238]
[1743945185873,8e-05,82850.0,82849.0,1.7311316]
[1743945186267,8e-05,82850.0,82849.0,1.6477716]
[1743945186474,8e-05,82850.0,82849.0,1.6788716]
[1743945187276,0.0846106,82850.0,82849.0,1.5851716]
[1743945187466,0.3646106,82850.0,82849.0,0.0851716]
[1743945187671,0.3654506,82850.0,82849.0,0.0851716]
[1743945188274,0.5316506,82850.0,82849.0,0.00064]
[1743945188579,0.6716506,82850.0,82849.0,0.00064]
[1743945188781,0.8616506,82850.0,82849.0,0.00064]
[1743945188983,0.5816506,82850.0,82849.0,0.00064]
[1743945189169,0.6716506,82850.0,82849.0,0.00064]
[1743945189368,0.6616506,82850.0,82849.0,0.00064]
[1743945189869,0.4316506,82850.0,82849.0,0.00064]
[1743945190273,0.6816506,82850.0,82849.0,0.0851716]
[1743945191071,0.7216506,82850.0,82849.0,0.00064]
[1743945191381,0.6716506,82850.0,82849.0,0.00064]
[1743945192979,0.0845316,82849.0,82844.0,0.21696132]
[1743945193170,0.0845357,82845.0,82844.0,0.21696132]
[1743945193371,0.3645357,82845.0,82844.0,0.30149802]
[1743945193781,0.36549571,82845.0,82844.0,0.30149802]
[1743945193981,0.37746576,82845.0,82844.0,0.30149802]
[1743945194876,0.63746576,82845.0,82844.0,0.21696132]
[1743945195176,0.0845397,82841.0,82840.0,0.00018108]
[1743945195383,0.5545397,82841.0,82840.0,0.00018108]
[1743945195878,0.55549971,82841.0,82840.0,0.00018108]
[1743945197573,0.70549971,82841.0,82840.0,0.00018108]
[1743945197977,0.70549971,82841.0,82830.0,1.5]
[1743945197978,0.0845499,82831.0,82830.0,1.5]
[1743945198283,0.9053499,82831.0,82830.0,1.5]
[1743945198582,0.6753499,82831.0,82830.0,1.5]
[1743945198782,0.9553499,82831.0,82830.0,1.5]
[1743945198978,0.7410499,82831.0,82830.0,1.5]
[1743945199178,0.9960499,82831.0,82830.0,1.5]
[1743945199386,0.7460499,82831.0,82830.0,1.5]
[1743945199684,1.0100499,82831.0,82830.0,1.5]
[1743945200383,0.7500499,82831.0,82830.0,1.5]
[1743945200975,1.0300499,82831.0,82830.0,1.5]
[1743945201387,0.7500499,82831.0,82830.0,1.5]
[1743945201591,0.9800499,82831.0,82830.0,1.50897385]
[1743945201886,1.0300499,82831.0,82830.0,1.50897385]
[1743945202080,1.0100499,82831.0,82830.0,1.50897385]
[1743945202384,0.7500499,82831.0,82830.0,1.50897385]
[1743945203377,1.0400499,82831.0,82830.0,1.50897385]
[1743945203577,0.7500499,82831.0,82830.0,1.50897385]
[1743945205395,0.8400499,82831.0,82830.0,1.50897385]
[1743945205580,0.7500499,82831.0,82830.0,1.59352485]
[1743945206684,0.7500499,82831.0,82830.0,1.50897385]
[1743945206987,0.9900499,82831.0,82830.0,1.50897385]
[1743945207186,0.9800499,82831.0,82830.0,1.50897385]
[1743945207580,0.7500499,82831.0,82830.0,1.50897385]
[1743945207887,0.7500499,82831.0,82830.0,1.59352485]
[1743945208084,0.7500499,82831.0,82830.0,1.50897385]
[1743945208388,1.0000499,82831.0,82822.0,0.00018108]
[1743945208582,0.0845581,82823.0,82822.0,0.08474018]
[1743945208890,0.3645581,82823.0,82822.0,1.58474018]
[1743945209489,0.6866581,82823.0,82822.0,1.50018108]
[1743945209691,0.4266581,82823.0,82822.0,1.58474018]
[1743945210077,0.42761811,82823.0,82822.0,1.59439932]
[1743945210282,0.42761811,82823.0,82822.0,1.50984022]
[1743945210478,0.42761811,82823.0,82822.0,1.59439932]
[1743945210686,0.43061811,82823.0,82822.0,1.50984022]
[1743945211082,0.43061811,82823.0,82822.0,1.59439932]
[1743945211591,0.43061811,82823.0,82822.0,0.09439932]
[1743945212291,0.43061811,82823.0,82822.0,0.12509932]
[1743945214786,0.0422813,82819.0,82815.0,0.00060375]
[1743945215091,0.4453653,82816.0,82815.0,0.00060375]
[1743945215295,0.6765253,82816.0,82815.0,0.00060375]
[1743945215489,0.9979253,82816.0,82815.0,0.00060375]
[1743945215691,0.0845714,82810.0,82809.0,0.0308]
[1743945215888,0.3157314,82810.0,82809.0,0.1153724]
[1743945216188,0.3157314,82810.0,82809.0,0.1466724]
[1743945216582,0.3771314,82810.0,82809.0,0.1466724]
[1743945216987,0.3771314,82810.0,82809.0,0.1476724]
[1743945217493,0.3771314,82810.0,82809.0,0.1567064]
[1743945217691,0.3771314,82810.0,82809.0,0.1577064]
[1743945217885,0.6471314,82810.0,82809.0,0.073134]
[1743945218085,0.3771314,82810.0,82809.0,0.073134]
[1743945218281,0.3771314,82810.0,82809.0,0.072134]
[1743945218481,0.3771314,82810.0,82809.0,0.073134]
[1743945218686,0.3771314,82810.0,82809.0,0.1577064]
[1743945218990,0.3771314,82810.0,82809.0,0.073134]
[1743945219201,0.3771314,82810.0,82803.0,1.5]
[1743945219202,0.0845775,82804.0,82803.0,1.5]
[1743945219397,0.6853775,82804.0,82803.0,1.5]
[1743945219593,0.6853775,82804.0,82803.0,1.50903257]
[1743945219790,0.6853775,82804.0,82803.0,0.00903257]
[1743945219992,0.0845796,82802.0,82801.0,0.00018108]
[1743945220191,0.3557396,82802.0,82801.0,0.00018108]
[1743945221295,0.3557396,82802.0,82801.0,0.08776168]
[1743945221691,0.6357396,82802.0,82801.0,0.08776168]
[1743945221892,0.3557396,82802.0,82801.0,0.08776168]
[1743945222491,0.3557396,82802.0,82801.0,0.08844168]
[1743945222702,0.3557396,82802.0,82801.0,0.00686108]
[1743945222885,0.6357396,82802.0,82801.0,0.00618108]
[1743945223091,0.3557396,82802.0,82801.0,0.00618108]
[1743945224199,0.3557396,82802.0,82801.0,0.09076168]
[1743945224391,0.3557396,82802.0,82801.0,0.09140168]
[1743945224697,0.3557396,82802.0,82801.0,0.10042519]
[1743945224899,0.3557396,82802.0,82801.0,0.13302519]
[1743945227393,0.3557396,82802.0,82801.0,0.13238519]
[1743945230404,0.3881396,82802.0,82801.0,0.13238519]
[1743945232307,0.3881396,82802.0,82801.0,0.16378519]
[1743945233609,0.4204396,82802.0,82801.0,0.16378519]
[1743945234416,0.30356,82802.0,82801.0,0.16378519]
[1743945235810,0.27116,82802.0,82801.0,0.16378519]
[1743945236912,0.27,82802.0,82801.0,0.16378519]
[1743945240003,0.27116,82802.0,82801.0,0.16494519]
[1743945240608,0.3022,82802.0,82801.0,0.16494519]
[1743945246417,0.30336,82802.0,82801.0,0.16494519]
[1743945253717,8e-05,82803.0,82802.0,0.0845796]
[1743945253924,0.10810092,82804.0,82803.0,0.0845785]
[1743945254227,0.03078,82817.0,82810.0,0.0845714]
[1743945254417,0.0307,82817.0,82810.0,0.0845714]
[1743945254618,0.36088,82813.0,82810.0,0.0845714]
[1743945255120,0.36088,82813.0,82810.0,1.6806714]
[1743945255328,0.28493456,82811.0,82810.0,1.6806714]
[1743945257025,0.31703456,82811.0,82810.0,1.6806714]
[1743945260426,0.31623456,82811.0,82810.0,1.6806714]
[1743945260830,0.1721,82811.0,82810.0,1.6806714]
[1743945261923,0.0321,82811.0,82810.0,1.6806714]
[1743945263329,0.0329,82812.0,82811.0,0.0845704]
[1743945263630,8e-05,82813.0,82812.0,0.0845693]
[1743945263931,0.0308,82823.0,82820.0,0.0845612]
[1743945264238,8e-05,82822.0,82820.0,0.0845612]
[1743945264423,0.0308,82823.0,82820.0,0.0845612]
[1743945264625,0.0308,82823.0,82822.0,0.0845591]
[1743945264830,0.03088,82823.0,82822.0,0.0845591]
[1743945265025,0.03168,82823.0,82822.0,0.0851991]
[1743945265333,0.03168,82823.0,82822.0,0.1159991]
[1743945266534,0.06258,82823.0,82822.0,0.0851991]
[1743945266923,0.06458,82823.0,82822.0,0.0851991]
[1743945267424,0.06658,82823.0,82822.0,0.0851991]
[1743945270937,0.3811381,82823.0,82822.0,0.0851991]
[1743945271141,0.4011381,82823.0,82822.0,0.00064]
[1743945271342,0.0845602,82821.0,82820.0,0.1268409]
[1743945271542,0.3345602,82821.0,82820.0,0.1268409]
[1743945271725,0.5945602,82821.0,82820.0,0.1268409]
[1743945272042,0.06578,82823.0,82822.0,0.0845591]
[1743945272235,0.30578,82823.0,82822.0,0.0845591]
[1743945272440,0.3057,82823.0,82822.0,0.0845591]
[1743945272841,0.3057,82823.0,82822.0,0.1149591]
[1743945273139,0.3037,82823.0,82822.0,0.1149591]
[1743945274334,0.3057,82823.0,82822.0,0.1149591]
[1743945275239,0.3057,82823.0,82822.0,0.1155991]
[1743945275737,0.3065,82823.0,82822.0,0.1155991]
[1743945276139,0.3910581,82823.0,82822.0,0.0851991]
[1743945276541,0.6710581,82823.0,82822.0,0.0851991]
[1743945276741,0.0845602,82821.0,82820.0,0.0422801]
[1743945276946,0.3454802,82821.0,82820.0,0.0422801]
[1743945277140,0.5754802,82821.0,82820.0,0.0422801]
[1743945277347,0.3454802,82821.0,82820.0,0.0422801]
[1743945277841,0.3474802,82821.0,82820.0,0.0422801]
[1743945278040,0.3494802,82821.0,82820.0,0.0422801]
[1743945286542,0.26492,82821.0,82820.0,0.0422801]
[1743945286842,0.3494802,82821.0,82820.0,0.0422801]
[1743945287345,0.3494802,82821.0,82820.0,0.0739201]
[1743945287645,0.4145802,82821.0,82820.0,0.0739201]
[1743945287847,0.4145802,82821.0,82820.0,0.0732801]
[1743945288152,0.33002,82821.0,82820.0,0.0732801]
[1743945288453,0.29742,82821.0,82820.0,0.1059801]
[1743945288644,0.29742,82821.0,82820.0,0.1066201]
[1743945288843,0.32942,82821.0,82820.0,0.1066201]
[1743945289044,0.32942,82821.0,82820.0,0.1059801]
[1743945289943,0.4139802,82821.0,82820.0,0.1059801]
[1743945290343,0.32942,82821.0,82820.0,0.1059801]
[1743945291555,0.4139802,82821.0,82820.0,0.1059801]
[1743945291765,0.4139802,82821.0,82820.0,0.0732801]
[1743945292241,0.4139802,82821.0,82820.0,0.0422801]
[1743945293253,0.4139802,82821.0,82820.0,0.0737801]
[1743945294658,0.32942,82821.0,82820.0,0.0737801]
[1743945294858,0.00492,82821.0,82820.0,0.0737801]
[1743945295046,0.00492,82821.0,82820.0,0.1404201]
[1743945295555,0.00492,82821.0,82820.0,1.6404201]
[1743945295954,0.0048,82821.0,82820.0,1.6404201]
[1743945296555,0.0048,82821.0,82820.0,1.69848082]
[1743945298757,0.0048,82821.0,82820.0,1.6404201]
[1743945300452,0.004,82821.0,82820.0,1.6404201]
[1743945301970,0.1543602,82821.0,82820.0,0.0744201]
[1743945302463,0.4343602,82821.0,82820.0,0.0744201]
[1743945302663,0.1543602,82821.0,82820.0,0.0744201]
[1743945302855,0.4043602,82821.0,82820.0,0.0744201]
[1743945303056,0.1543602,82821.0,82820.0,0.0744201]
[1743945303251,0.4043602,82821.0,82820.0,0.0744201]
[1743945303457,0.4143602,82821.0,82820.0,0.0744201]
[1743945303665,0.2643602,82821.0,82820.0,0.0744201]
[1743945303862,0.4043602,82821.0,82820.0,0.0744201]
[1743945304057,0.4243602,82821.0,82820.0,0.0744201]
[1743945304260,0.1543602,82821.0,82820.0,0.0744201]
[1743945304567,0.3843602,82821.0,82820.0,0.0744201]
[1743945304867,0.1543602,82821.0,82820.0,0.0744201]
[1743945305062,0.1551602,82821.0,82820.0,0.0744201]
[1743945305665,0.4151602,82821.0,82820.0,0.0744201]
[1743945305865,0.1551602,82821.0,82820.0,0.0744201]
[1743945306366,0.4051602,82821.0,82820.0,0.0744201]
[1743945306566,0.3851602,82821.0,82820.0,0.0744201]
[1743945306962,0.3851602,82821.0,82820.0,0.00064]
[1743945307163,0.0845673,82814.0,82813.0,0.28959873]
[1743945307365,0.6045673,82814.0,82813.0,0.29027873]
[1743945307558,0.6254473,82814.0,82813.0,0.29027873]
[1743945307767,1.0062473,82814.0,82813.0,0.29027873]
[1743945308165,0.9962473,82814.0,82813.0,0.29027873]
[1743945308574,0.7262473,82814.0,82813.0,0.29027873]
[1743945308870,0.8372473,82814.0,82813.0,0.29027873]
[1743945309280,1.1072473,82814.0,82813.0,0.29027873]